[Event "Titled Tuesday Blitz November 9 2021"]
[White "Zubov, Alexander"]
[Black "Obregon, Andres Carlos"]
[WhiteFideId "14109409"]
[BlackFideId "111724"]
[WhiteElo "2685"]
[BlackElo "2572"]
[Result "1/2-1/2"]
[Round "04"]
[TimeControl "180+1"]
[Date "2021.11.09"]
[WhiteClock "0:00:11"]
[BlackClock "0:00:14"]

1. d4 {[%clk 0:03:00]}  Nf6 {[%clk 0:02:57]} 2. c4 {[%clk 0:03:00]}  e6 {[%clk 0:02:55]} 3. Nf3 {[%clk 0:02:59]}  d5 {[%clk 0:02:52]} 4. Nc3 {[%clk 0:02:58]}  dxc4 {[%clk 0:02:49]} 5. e4 {[%clk 0:02:58]}  b5 {[%clk 0:02:46]} 6. e5 {[%clk 0:02:58]}  Nd5 {[%clk 0:02:43]} 7. Nxb5 {[%clk 0:02:58]}  Nb6 {[%clk 0:02:41]} 8. a3 {[%clk 0:02:56]}  Nc6 {[%clk 0:02:36]} 9. Be3 {[%clk 0:02:53]}  Na5 {[%clk 0:02:33]} 10. Qc2 {[%clk 0:02:52]}  a6 {[%clk 0:02:31]} 11. Nc3 {[%clk 0:02:50]}  Be7 {[%clk 0:02:31]} 12. Rd1 {[%clk 0:02:37]}  Bb7 {[%clk 0:02:29]} 13. Be2 {[%clk 0:02:35]}  Qd7 {[%clk 0:02:27]} 14. O-O {[%clk 0:02:31]}  h6 {[%clk 0:02:04]} 15. Nd2 {[%clk 0:02:06]}  O-O {[%clk 0:02:00]} 16. Nde4 {[%clk 0:02:05]}  Nd5 {[%clk 0:01:49]} 17. Bc1 {[%clk 0:01:51]}  Rad8 {[%clk 0:01:40]} 18. Rfe1 {[%clk 0:01:25]}  Qc6 {[%clk 0:01:37]} 19. Nxd5 {[%clk 0:01:09]}  Rxd5 {[%clk 0:01:29]} 20. Bf3 {[%clk 0:01:05]}  Qb6 {[%clk 0:01:29]} 21. Nc3 {[%clk 0:00:59]}  Rxd4 {[%clk 0:01:21]} 22. Be3 {[%clk 0:00:52]}  Rxd1 {[%clk 0:01:20]} 23. Rxd1 {[%clk 0:00:52]}  Qb3 {[%clk 0:01:17]} 24. Qxb3 {[%clk 0:00:50]}  cxb3 {[%clk 0:01:15]} 25. Bxb7 {[%clk 0:00:40]}  Nxb7 {[%clk 0:01:15]} 26. Rd7 {[%clk 0:00:41]}  Bd8 {[%clk 0:00:43]} 27. Kf1 {[%clk 0:00:40]}  Na5 {[%clk 0:00:40]} 28. Bc5 {[%clk 0:00:39]}  Re8 {[%clk 0:00:40]} 29. f4 {[%clk 0:00:37]}  Nc4 {[%clk 0:00:39]} 30. Na4 {[%clk 0:00:36]}  f6 {[%clk 0:00:36]} 31. Rd4 {[%clk 0:00:32]}  Ne3+ {[%clk 0:00:36]} 32. Kf2 {[%clk 0:00:32]}  Nd5 {[%clk 0:00:35]} 33. Ke2 {[%clk 0:00:27]}  g5 {[%clk 0:00:34]} 34. g3 {[%clk 0:00:23]}  Kf7 {[%clk 0:00:33]} 35. Kd3 {[%clk 0:00:18]}  Rg8 {[%clk 0:00:30]} 36. fxg5 {[%clk 0:00:17]}  fxe5 {[%clk 0:00:30]} 37. Re4 {[%clk 0:00:17]}  Bxg5 {[%clk 0:00:29]} 38. Rxe5 {[%clk 0:00:16]}  Bf6 {[%clk 0:00:30]} 39. Re2 {[%clk 0:00:16]}  Rb8 {[%clk 0:00:29]} 40. Kc4 {[%clk 0:00:16]}  Rb5 {[%clk 0:00:27]} 41. Rf2 {[%clk 0:00:15]}  Kg6 {[%clk 0:00:27]} 42. Re2 {[%clk 0:00:16]}  Kf7 {[%clk 0:00:25]} 43. Bd4 {[%clk 0:00:15]}  Nb6+ {[%clk 0:00:20]} 44. Nxb6 {[%clk 0:00:11]}  Bxd4 {[%clk 0:00:20]} 45. Na4 {[%clk 0:00:09]}  e5 {[%clk 0:00:18]} 46. Nc3 {[%clk 0:00:09]}  Rb6 {[%clk 0:00:17]} 47. Nd5 {[%clk 0:00:09]}  Rb7 {[%clk 0:00:18]} 48. Re1 {[%clk 0:00:07]}  a5 {[%clk 0:00:17]} 49. Re2 {[%clk 0:00:07]}  c6 {[%clk 0:00:18]} 50. Nc3 {[%clk 0:00:06]}  Ke6 {[%clk 0:00:18]} 51. Ne4 {[%clk 0:00:06]}  Rf7 {[%clk 0:00:18]} 52. Kxb3 {[%clk 0:00:05]}  Rf1 {[%clk 0:00:17]} 53. Ka4 {[%clk 0:00:05]}  Kd5 {[%clk 0:00:16]} 54. Kxa5 {[%clk 0:00:06]}  Rb1 {[%clk 0:00:16]} 55. b4 {[%clk 0:00:06]}  Rb3 {[%clk 0:00:15]} 56. Ka4 {[%clk 0:00:05]}  Rb1 {[%clk 0:00:14]} 57. Nf6+ {[%clk 0:00:04]}  Kc4 {[%clk 0:00:14]} 58. Re4 {[%clk 0:00:04]}  Kd3 {[%clk 0:00:14]} 59. Rh4 {[%clk 0:00:05]}  Rf1 {[%clk 0:00:13]} 60. Rxh6 {[%clk 0:00:05]}  e4 {[%clk 0:00:13]} 61. Nxe4 {[%clk 0:00:05]}  Kxe4 {[%clk 0:00:14]} 62. Rxc6 {[%clk 0:00:06]}  Kd5 {[%clk 0:00:14]} 63. Rh6 {[%clk 0:00:05]}  Ra1 {[%clk 0:00:14]} 64. Rh5+ {[%clk 0:00:05]}  Kc4 {[%clk 0:00:14]} 65. Rh4 {[%clk 0:00:06]}  Kc3 {[%clk 0:00:13]} 66. Rf4 {[%clk 0:00:07]}  Ra2 {[%clk 0:00:13]} 67. h3 {[%clk 0:00:06]}  Rh2 {[%clk 0:00:12]} 68. h4 {[%clk 0:00:06]}  Be5 {[%clk 0:00:13]} 69. Rf3+ {[%clk 0:00:06]}  Kc4 {[%clk 0:00:13]} 70. Re3 {[%clk 0:00:06]}  Kd4 {[%clk 0:00:13]} 71. Re1 {[%clk 0:00:06]}  Bxg3 {[%clk 0:00:13]} 72. Rd1+ {[%clk 0:00:05]}  Kc4 {[%clk 0:00:12]} 73. Rc1+ {[%clk 0:00:05]}  Kd5 {[%clk 0:00:12]} 74. Rd1+ {[%clk 0:00:05]}  Kc6 {[%clk 0:00:12]} 75. Rc1+ {[%clk 0:00:06]}  Kb7 {[%clk 0:00:12]} 76. Rg1 {[%clk 0:00:06]}  Bxh4 {[%clk 0:00:12]} 77. Rg7+ {[%clk 0:00:06]}  Kb6 {[%clk 0:00:13]} 78. Rh7 {[%clk 0:00:07]}  Bg3 {[%clk 0:00:12]} 79. Rxh2 {[%clk 0:00:07]}  Bxh2 {[%clk 0:00:12]} 80. Kb3 {[%clk 0:00:08]}  Bd6 {[%clk 0:00:12]} 81. Kc4 {[%clk 0:00:08]}  Be7 {[%clk 0:00:12]} 82. a4 {[%clk 0:00:08]}  Bxb4 {[%clk 0:00:12]} 83. Kxb4 {[%clk 0:00:09]}  Ka7 {[%clk 0:00:13]} 84. a5 {[%clk 0:00:10]}  Ka8 {[%clk 0:00:13]} 85. a6 {[%clk 0:00:11]}  Ka7 {[%clk 0:00:14]} 86. Ka4 {[%clk 0:00:11]}  Kxa6 {[%clk 0:00:14]} 1/2-1/2


[Site "https://www.chess.com"]

[Event "Titled Tuesday Blitz November 9 2021"]
[White "Baskin, Robert"]
[Black "Adly, Ahmed"]
[WhiteFideId "24662402"]
[BlackFideId "10601619"]
[WhiteElo "2488"]
[BlackElo "2683"]
[Result "0-1"]
[Round "05"]
[TimeControl "180+1"]
[Date "2021.11.09"]
[WhiteClock "0:00:02"]
[BlackClock "0:00:12"]

1. e4 {[%clk 0:03:00]}  c6 {[%clk 0:02:59]} 2. d4 {[%clk 0:02:56]}  d5 {[%clk 0:02:58]} 3. e5 {[%clk 0:02:56]}  Bf5 {[%clk 0:02:57]} 4. Nc3 {[%clk 0:02:53]}  e6 {[%clk 0:02:52]} 5. g4 {[%clk 0:02:53]}  Bg6 {[%clk 0:02:52]} 6. Nge2 {[%clk 0:02:54]}  h6 {[%clk 0:02:49]} 7. h4 {[%clk 0:02:48]}  c5 {[%clk 0:02:46]} 8. Be3 {[%clk 0:02:44]}  Nc6 {[%clk 0:02:43]} 9. h5 {[%clk 0:02:44]}  Bh7 {[%clk 0:02:42]} 10. f4 {[%clk 0:02:43]}  Qb6 {[%clk 0:02:31]} 11. Na4 {[%clk 0:02:26]}  Qa5+ {[%clk 0:02:25]} 12. c3 {[%clk 0:02:26]}  Be4 {[%clk 0:02:22]} 13. Rh3 {[%clk 0:02:22]}  cxd4 {[%clk 0:02:12]} 14. Nxd4 {[%clk 0:02:21]}  Nxd4 {[%clk 0:02:05]} 15. Qxd4 {[%clk 0:02:22]}  Ne7 {[%clk 0:02:03]} 16. Nc5 {[%clk 0:01:46]}  Nc6 {[%clk 0:01:56]} 17. Qa4 {[%clk 0:01:43]}  Qxa4 {[%clk 0:01:41]} 18. Nxa4 {[%clk 0:01:44]}  b6 {[%clk 0:01:38]} 19. Ba6 {[%clk 0:01:43]}  Rb8 {[%clk 0:01:32]} 20. O-O-O {[%clk 0:01:42]}  Be7 {[%clk 0:01:25]} 21. Bb5 {[%clk 0:01:34]}  Rc8 {[%clk 0:01:22]} 22. c4 {[%clk 0:01:25]}  O-O {[%clk 0:01:11]} 23. Nc3 {[%clk 0:01:24]}  Nb8 {[%clk 0:01:05]} 24. Nxe4 {[%clk 0:01:21]}  dxe4 {[%clk 0:01:06]} 25. b3 {[%clk 0:01:18]}  a6 {[%clk 0:01:04]} 26. Bd7 {[%clk 0:01:13]}  Rc7 {[%clk 0:01:00]} 27. Bxe6 {[%clk 0:01:08]}  fxe6 {[%clk 0:00:57]} 28. Bxb6 {[%clk 0:01:08]}  Rb7 {[%clk 0:00:57]} 29. Be3 {[%clk 0:01:07]}  Nc6 {[%clk 0:00:56]} 30. Rh2 {[%clk 0:00:24]}  Nb4 {[%clk 0:00:51]} 31. Rd4 {[%clk 0:00:24]}  Bc5 {[%clk 0:00:45]} 32. Rxe4 {[%clk 0:00:21]}  Bxe3+ {[%clk 0:00:41]} 33. Rxe3 {[%clk 0:00:22]}  Rxf4 {[%clk 0:00:42]} 34. Rd2 {[%clk 0:00:14]}  Rxg4 {[%clk 0:00:35]} 35. a3 {[%clk 0:00:11]}  Nc6 {[%clk 0:00:35]} 36. Rd6 {[%clk 0:00:12]}  Nd4 {[%clk 0:00:32]} 37. b4 {[%clk 0:00:11]}  a5 {[%clk 0:00:30]} 38. Rd3 {[%clk 0:00:11]}  Nf5 {[%clk 0:00:23]} 39. Rxe6 {[%clk 0:00:11]}  Rxc4+ {[%clk 0:00:22]} 40. Kd2 {[%clk 0:00:10]}  axb4 {[%clk 0:00:19]} 41. axb4 {[%clk 0:00:08]}  Rcxb4 {[%clk 0:00:17]} 42. Rf3 {[%clk 0:00:08]}  Rb2+ {[%clk 0:00:13]} 43. Kc1 {[%clk 0:00:03]}  Rb1+ {[%clk 0:00:13]} 44. Kc2 {[%clk 0:00:02]}  Nd4+ {[%clk 0:00:12]} 0-1


[Site "https://www.chess.com"]

[Event "Titled Tuesday Blitz November 9 2021"]
[White "Bazeev, German"]
[Black "Sorensen, Hampus"]
[WhiteFideId "24119350"]
[BlackFideId "8703884"]
[WhiteElo "2462"]
[BlackElo "2213"]
[Result "1-0"]
[Round "05"]
[TimeControl "180+1"]
[Date "2021.11.09"]
[WhiteClock "0:02:27"]
[BlackClock "0:02:10"]

1. d4 {[%clk 0:03:00]}  Nf6 {[%clk 0:02:56]} 2. Nf3 {[%clk 0:03:01]}  d5 {[%clk 0:02:53]} 3. c4 {[%clk 0:03:01]}  dxc4 {[%clk 0:02:53]} 4. e3 {[%clk 0:03:01]}  e6 {[%clk 0:02:48]} 5. Bxc4 {[%clk 0:03:01]}  a6 {[%clk 0:02:49]} 6. O-O {[%clk 0:03:01]}  b5 {[%clk 0:02:48]} 7. Be2 {[%clk 0:02:59]}  Bb7 {[%clk 0:02:49]} 8. a4 {[%clk 0:02:59]}  b4 {[%clk 0:02:49]} 9. Ne5 {[%clk 0:02:58]}  Nbd7 {[%clk 0:02:48]} 10. Bf3 {[%clk 0:02:55]}  Bxf3 {[%clk 0:02:42]} 11. Qxf3 {[%clk 0:02:55]}  Nxe5 {[%clk 0:02:43]} 12. dxe5 {[%clk 0:02:56]}  Nd5 {[%clk 0:02:41]} 13. a5 {[%clk 0:02:46]}  Be7 {[%clk 0:02:38]} 14. e4 {[%clk 0:02:45]}  c6 {[%clk 0:02:21]} 15. exd5 {[%clk 0:02:42]}  exd5 {[%clk 0:02:22]} 16. Qg4 {[%clk 0:02:41]}  g6 {[%clk 0:02:17]} 17. Bh6 {[%clk 0:02:38]}  c5 {[%clk 0:02:15]} 18. Nd2 {[%clk 0:02:36]}  c4 {[%clk 0:02:14]} 19. Rfe1 {[%clk 0:02:28]}  d4 {[%clk 0:02:10]} 20. Nxc4 {[%clk 0:02:27]} 1-0


[Site "https://www.chess.com"]

[Event "Titled Tuesday Blitz November 9 2021"]
[White "Bologan, Victor"]
[Black "Tabatabaei, M. Amin"]
[WhiteFideId "13900048"]
[BlackFideId "12521213"]
[WhiteElo "2472"]
[BlackElo "2555"]
[Result "1-0"]
[Round "05"]
[TimeControl "180+1"]
[Date "2021.11.09"]
[WhiteClock "0:00:37"]
[BlackClock "0:00:34"]

1. e4 {[%clk 0:03:00]}  c5 {[%clk 0:03:00]} 2. Nf3 {[%clk 0:03:00]}  d6 {[%clk 0:03:00]} 3. c3 {[%clk 0:02:58]}  Nf6 {[%clk 0:03:00]} 4. Bd3 {[%clk 0:02:58]}  Nc6 {[%clk 0:02:57]} 5. Bc2 {[%clk 0:02:58]}  Bg4 {[%clk 0:02:56]} 6. h3 {[%clk 0:02:57]}  Bh5 {[%clk 0:02:56]} 7. d4 {[%clk 0:02:55]}  Bxf3 {[%clk 0:02:50]} 8. gxf3 {[%clk 0:02:52]}  e5 {[%clk 0:02:39]} 9. Ba4 {[%clk 0:02:48]}  exd4 {[%clk 0:02:39]} 10. cxd4 {[%clk 0:02:48]}  cxd4 {[%clk 0:02:34]} 11. Qxd4 {[%clk 0:02:45]}  Be7 {[%clk 0:02:35]} 12. Nc3 {[%clk 0:02:44]}  O-O {[%clk 0:02:34]} 13. Bxc6 {[%clk 0:02:43]}  bxc6 {[%clk 0:02:34]} 14. Rg1 {[%clk 0:02:33]}  Re8 {[%clk 0:02:30]} 15. Be3 {[%clk 0:02:26]}  Rb8 {[%clk 0:02:23]} 16. O-O-O {[%clk 0:02:24]}  Qb6 {[%clk 0:02:19]} 17. Qd2 {[%clk 0:02:07]}  Qa6 {[%clk 0:02:19]} 18. Kb1 {[%clk 0:01:56]}  g6 {[%clk 0:02:06]} 19. Bd4 {[%clk 0:01:38]}  Nd7 {[%clk 0:02:02]} 20. f4 {[%clk 0:01:33]}  Nb6 {[%clk 0:01:52]} 21. f5 {[%clk 0:00:58]}  Nc4 {[%clk 0:01:37]} 22. Qh6 {[%clk 0:00:56]}  Bf8 {[%clk 0:01:37]} 23. Qh4 {[%clk 0:00:46]}  Rxb2+ {[%clk 0:01:27]} 24. Ka1 {[%clk 0:00:45]}  Qa3 {[%clk 0:01:04]} 25. fxg6 {[%clk 0:00:42]}  fxg6 {[%clk 0:00:33]} 26. Rxg6+ {[%clk 0:00:39]}  hxg6 {[%clk 0:00:33]} 27. Qh8+ {[%clk 0:00:38]}  Kf7 {[%clk 0:00:34]} 28. Qf6+ {[%clk 0:00:37]} 1-0


[Site "https://www.chess.com"]

[Event "Titled Tuesday Blitz November 9 2021"]
[White "Dzhumagaliev, Yan"]
[Black "Sjugirov, Sanan"]
[WhiteFideId "24100110"]
[BlackFideId "4189302"]
[WhiteElo "2507"]
[BlackElo "2653"]
[Result "1-0"]
[Round "05"]
[TimeControl "180+1"]
[Date "2021.11.09"]
[WhiteClock "0:00:09"]
[BlackClock "0:00:04"]

1. Nf3 {[%clk 0:02:59]}  d5 {[%clk 0:02:57]} 2. h4 {[%clk 0:03:00]}  c5 {[%clk 0:02:55]} 3. h5 {[%clk 0:03:01]}  h6 {[%clk 0:02:55]} 4. c3 {[%clk 0:03:02]}  Nc6 {[%clk 0:02:53]} 5. d4 {[%clk 0:03:03]}  Nf6 {[%clk 0:02:48]} 6. Bf4 {[%clk 0:03:04]}  cxd4 {[%clk 0:02:46]} 7. cxd4 {[%clk 0:03:00]}  Qb6 {[%clk 0:02:45]} 8. Qb3 {[%clk 0:02:53]}  Qxb3 {[%clk 0:02:41]} 9. axb3 {[%clk 0:02:54]}  Nb4 {[%clk 0:02:26]} 10. Na3 {[%clk 0:02:51]}  Bd7 {[%clk 0:02:12]} 11. Ne5 {[%clk 0:02:28]}  e6 {[%clk 0:02:09]} 12. f3 {[%clk 0:02:26]}  Rc8 {[%clk 0:02:02]} 13. Bd2 {[%clk 0:02:22]}  a6 {[%clk 0:01:56]} 14. e3 {[%clk 0:02:15]}  Bd6 {[%clk 0:01:54]} 15. Bc3 {[%clk 0:02:06]}  Bc6 {[%clk 0:01:47]} 16. Kd2 {[%clk 0:01:51]}  Nd7 {[%clk 0:01:47]} 17. Nxc6 {[%clk 0:01:41]}  Rxc6 {[%clk 0:01:46]} 18. Nc2 {[%clk 0:01:36]}  Rb6 {[%clk 0:01:35]} 19. Nxb4 {[%clk 0:01:04]}  Bxb4 {[%clk 0:01:36]} 20. Rc1 {[%clk 0:01:05]}  Ke7 {[%clk 0:01:34]} 21. Bxb4+ {[%clk 0:01:02]}  Rxb4 {[%clk 0:01:34]} 22. Rc3 {[%clk 0:01:03]}  Rb6 {[%clk 0:01:17]} 23. Bd3 {[%clk 0:01:01]}  Ra8 {[%clk 0:01:00]} 24. g4 {[%clk 0:01:00]}  a5 {[%clk 0:00:59]} 25. Ra1 {[%clk 0:01:00]}  Kd6 {[%clk 0:00:40]} 26. e4 {[%clk 0:00:50]}  dxe4 {[%clk 0:00:35]} 27. fxe4 {[%clk 0:00:50]}  e5 {[%clk 0:00:35]} 28. Ra4 {[%clk 0:00:38]}  f6 {[%clk 0:00:30]} 29. Ke3 {[%clk 0:00:35]}  Rc6 {[%clk 0:00:09]} 30. d5 {[%clk 0:00:32]}  Rb6 {[%clk 0:00:06]} 31. Rac4 {[%clk 0:00:31]}  a4 {[%clk 0:00:04]} 32. b4 {[%clk 0:00:29]}  Rba6 {[%clk 0:00:02]} 33. Rc7 {[%clk 0:00:25]}  R6a7 {[%clk 0:00:03]} 34. Bb5 {[%clk 0:00:23]}  Rd8 {[%clk 0:00:03]} 35. Rxd7+ {[%clk 0:00:12]}  Rxd7 {[%clk 0:00:04]} 36. Bxd7 {[%clk 0:00:12]}  Kxd7 {[%clk 0:00:04]} 37. Kd3 {[%clk 0:00:11]}  Ra6 {[%clk 0:00:04]} 38. Kc4 {[%clk 0:00:11]}  Rb6 {[%clk 0:00:03]} 39. Kc5 {[%clk 0:00:12]}  Ra6 {[%clk 0:00:03]} 40. Kb5 {[%clk 0:00:12]}  Kd6 {[%clk 0:00:02]} 41. Ra3 {[%clk 0:00:12]}  Ra8 {[%clk 0:00:01]} 42. Rc3 {[%clk 0:00:12]}  Ra6 {[%clk 0:00:01]} 43. Ra3 {[%clk 0:00:11]}  Ra8 {[%clk 0:00:01]} 44. Kb6 {[%clk 0:00:11]}  Rc8 {[%clk 0:00:01]} 45. Rxa4 {[%clk 0:00:11]}  Rc4 {[%clk 0:00:02]} 46. b3 {[%clk 0:00:11]}  Rxe4 {[%clk 0:00:02]} 47. Kxb7 {[%clk 0:00:12]}  Kxd5 {[%clk 0:00:03]} 48. Kc7 {[%clk 0:00:11]}  Rxg4 {[%clk 0:00:03]} 49. b5 {[%clk 0:00:10]}  Rg3 {[%clk 0:00:03]} 50. Rb4 {[%clk 0:00:10]}  Rc3+ {[%clk 0:00:02]} 51. Kd7 {[%clk 0:00:08]}  Kc5 {[%clk 0:00:02]} 52. b6 {[%clk 0:00:08]}  Kxb4 {[%clk 0:00:02]} 53. b7 {[%clk 0:00:09]}  Rd3+ {[%clk 0:00:02]} 54. Ke7 {[%clk 0:00:09]}  e4 {[%clk 0:00:03]} 55. b8=Q+ {[%clk 0:00:10]}  Kc3 {[%clk 0:00:03]} 56. Qc7+ {[%clk 0:00:08]}  Kd2 {[%clk 0:00:04]} 57. Qf4+ {[%clk 0:00:07]}  e3 {[%clk 0:00:04]} 58. b4 {[%clk 0:00:08]}  Rb3 {[%clk 0:00:04]} 59. Qd4+ {[%clk 0:00:08]}  Kc2 {[%clk 0:00:04]} 60. Qc4+ {[%clk 0:00:08]}  Rc3 {[%clk 0:00:04]} 61. Qe2+ {[%clk 0:00:08]}  Kb3 {[%clk 0:00:05]} 62. b5 {[%clk 0:00:09]}  Rc5 {[%clk 0:00:03]} 63. b6 {[%clk 0:00:10]}  Kb4 {[%clk 0:00:04]} 64. Qxe3 {[%clk 0:00:09]}  Rb5 {[%clk 0:00:04]} 65. Kf7 {[%clk 0:00:09]} 1-0


[Site "https://www.chess.com"]

[Event "Titled Tuesday Blitz November 9 2021"]
[White "FGHSMN"]
[Black "Maghsoodloo, Parham"]
[BlackFideId "12539929"]
[WhiteElo "2671"]
[BlackElo "2601"]
[Result "0-1"]
[Round "05"]
[TimeControl "180+1"]
[Date "2021.11.09"]
[WhiteClock "0:00:12"]
[BlackClock "0:01:27"]

1. b3 {[%clk 0:02:59]}  d5 {[%clk 0:02:59]} 2. Bb2 {[%clk 0:02:59]}  Bf5 {[%clk 0:03:00]} 3. d3 {[%clk 0:02:59]}  Nf6 {[%clk 0:02:58]} 4. Nd2 {[%clk 0:02:59]}  e6 {[%clk 0:02:58]} 5. g3 {[%clk 0:02:58]}  Be7 {[%clk 0:02:57]} 6. Bg2 {[%clk 0:02:59]}  O-O {[%clk 0:02:57]} 7. e4 {[%clk 0:02:59]}  Bg6 {[%clk 0:02:57]} 8. Ne2 {[%clk 0:02:59]}  a5 {[%clk 0:02:57]} 9. a3 {[%clk 0:02:58]}  a4 {[%clk 0:02:49]} 10. b4 {[%clk 0:02:56]}  c5 {[%clk 0:02:49]} 11. bxc5 {[%clk 0:02:45]}  Bxc5 {[%clk 0:02:47]} 12. O-O {[%clk 0:02:44]}  dxe4 {[%clk 0:02:45]} 13. Bxf6 {[%clk 0:02:23]}  Qxf6 {[%clk 0:02:43]} 14. Nxe4 {[%clk 0:02:24]}  Bxe4 {[%clk 0:02:42]} 15. Bxe4 {[%clk 0:02:24]}  Nc6 {[%clk 0:02:42]} 16. c3 {[%clk 0:02:17]}  e5 {[%clk 0:02:33]} 17. Qb1 {[%clk 0:02:14]}  Qe7 {[%clk 0:02:29]} 18. Qa2 {[%clk 0:02:01]}  Kh8 {[%clk 0:02:27]} 19. Kh1 {[%clk 0:01:26]}  f5 {[%clk 0:02:20]} 20. Bg2 {[%clk 0:01:20]}  f4 {[%clk 0:02:17]} 21. Be4 {[%clk 0:01:16]}  Rad8 {[%clk 0:02:16]} 22. Ng1 {[%clk 0:01:15]}  Na5 {[%clk 0:02:11]} 23. Nf3 {[%clk 0:01:07]}  Nb3 {[%clk 0:02:07]} 24. Rae1 {[%clk 0:01:07]}  Bxa3 {[%clk 0:02:07]} 25. Nxe5 {[%clk 0:00:24]}  Qxe5 {[%clk 0:02:02]} 26. Qxa3 {[%clk 0:00:25]}  Qxc3 {[%clk 0:02:02]} 27. Bxb7 {[%clk 0:00:25]}  fxg3 {[%clk 0:01:54]} 28. fxg3 {[%clk 0:00:24]}  Rxf1+ {[%clk 0:01:30]} 29. Rxf1 {[%clk 0:00:25]}  Qc5 {[%clk 0:01:31]} 30. Qxa4 {[%clk 0:00:22]}  Nd2 {[%clk 0:01:31]} 31. Qh4 {[%clk 0:00:15]}  Qb6 {[%clk 0:01:27]} 32. Rd1 {[%clk 0:00:14]}  Qxb7+ {[%clk 0:01:27]} 33. Kg1 {[%clk 0:00:12]}  Nf3+ {[%clk 0:01:27]} 0-1


[Site "https://www.chess.com"]

[Event "Titled Tuesday Blitz November 9 2021"]
[White "Jaracz, Pawel"]
[Black "Grachev, Boris"]
[WhiteFideId "1102222"]
[BlackFideId "4129199"]
[WhiteElo "2495"]
[BlackElo "2555"]
[Result "1-0"]
[Round "05"]
[TimeControl "180+1"]
[Date "2021.11.09"]
[WhiteClock "0:00:23"]
[BlackClock "0:00:01"]

1. e4 {[%clk 0:03:00]}  c5 {[%clk 0:02:57]} 2. Nf3 {[%clk 0:03:00]}  e6 {[%clk 0:02:57]} 3. d4 {[%clk 0:03:00]}  cxd4 {[%clk 0:02:58]} 4. Nxd4 {[%clk 0:03:00]}  Nf6 {[%clk 0:02:58]} 5. Nc3 {[%clk 0:03:00]}  Nc6 {[%clk 0:02:59]} 6. Ndb5 {[%clk 0:02:57]}  Bc5 {[%clk 0:02:58]} 7. Nd6+ {[%clk 0:02:56]}  Ke7 {[%clk 0:02:58]} 8. Nxc8+ {[%clk 0:02:50]}  Rxc8 {[%clk 0:02:58]} 9. Bd3 {[%clk 0:02:50]}  Qc7 {[%clk 0:02:58]} 10. O-O {[%clk 0:02:49]}  h5 {[%clk 0:02:58]} 11. Bg5 {[%clk 0:02:39]}  Kf8 {[%clk 0:02:57]} 12. Bh4 {[%clk 0:02:31]}  a6 {[%clk 0:02:52]} 13. Kh1 {[%clk 0:02:18]}  Ng4 {[%clk 0:02:45]} 14. Bg3 {[%clk 0:02:17]}  Bd6 {[%clk 0:02:44]} 15. Be2 {[%clk 0:02:10]}  Bxg3 {[%clk 0:02:41]} 16. hxg3 {[%clk 0:02:10]}  Nce5 {[%clk 0:02:29]} 17. Kg1 {[%clk 0:02:08]}  Ke7 {[%clk 0:02:20]} 18. Qd2 {[%clk 0:02:07]}  f6 {[%clk 0:02:16]} 19. Rad1 {[%clk 0:02:07]}  b5 {[%clk 0:02:14]} 20. a3 {[%clk 0:02:05]}  Qb6 {[%clk 0:02:11]} 21. Na2 {[%clk 0:01:50]}  Qc5 {[%clk 0:02:03]} 22. c3 {[%clk 0:01:47]}  Qc7 {[%clk 0:02:02]} 23. Nb4 {[%clk 0:01:45]}  a5 {[%clk 0:01:55]} 24. Nd3 {[%clk 0:01:43]}  Nc4 {[%clk 0:01:53]} 25. Qc1 {[%clk 0:01:40]}  a4 {[%clk 0:01:51]} 26. Nf4 {[%clk 0:01:40]}  Nce5 {[%clk 0:01:50]} 27. f3 {[%clk 0:01:31]}  Qb6+ {[%clk 0:01:38]} 28. Rd4 {[%clk 0:01:31]}  Nc6 {[%clk 0:01:34]} 29. Ng6+ {[%clk 0:01:29]}  Kf7 {[%clk 0:01:32]} 30. Nxh8+ {[%clk 0:01:28]}  Rxh8 {[%clk 0:01:32]} 31. fxg4 {[%clk 0:01:20]}  e5 {[%clk 0:01:22]} 32. g5 {[%clk 0:00:58]}  exd4 {[%clk 0:01:21]} 33. Kh1 {[%clk 0:00:52]}  h4 {[%clk 0:01:16]} 34. g4 {[%clk 0:00:52]}  Qc7 {[%clk 0:00:51]} 35. cxd4 {[%clk 0:00:47]}  h3 {[%clk 0:00:51]} 36. e5 {[%clk 0:00:46]}  hxg2+ {[%clk 0:00:47]} 37. Kxg2 {[%clk 0:00:47]}  Qb6 {[%clk 0:00:17]} 38. gxf6 {[%clk 0:00:37]}  g6 {[%clk 0:00:17]} 39. Rh1 {[%clk 0:00:25]}  Rxh1 {[%clk 0:00:12]} 40. Qxh1 {[%clk 0:00:26]}  Qxd4 {[%clk 0:00:12]} 41. Qh7+ {[%clk 0:00:26]}  Ke6 {[%clk 0:00:12]} 42. Qg8+ {[%clk 0:00:26]}  Kxe5 {[%clk 0:00:13]} 43. f7 {[%clk 0:00:27]}  Qd5+ {[%clk 0:00:06]} 44. Bf3 {[%clk 0:00:26]}  Qd2+ {[%clk 0:00:05]} 45. Kf1 {[%clk 0:00:23]}  Qc1+ {[%clk 0:00:03]} 46. Kf2 {[%clk 0:00:23]}  Qd2+ {[%clk 0:00:03]} 47. Be2 {[%clk 0:00:23]}  Qf4+ {[%clk 0:00:03]} 48. Kg2 {[%clk 0:00:23]}  Qe4+ {[%clk 0:00:01]} 49. Bf3 {[%clk 0:00:23]}  Qc2+ {[%clk 0:00:01]} 50. Kh3 {[%clk 0:00:23]} 1-0


[Site "https://www.chess.com"]

[Event "Titled Tuesday Blitz November 9 2021"]
[White "Kollars, Dmitrij"]
[Black "Babazada, Khazar"]
[WhiteFideId "12909572"]
[BlackFideId "13413554"]
[WhiteElo "2584"]
[BlackElo "2302"]
[Result "1-0"]
[Round "05"]
[TimeControl "180+1"]
[Date "2021.11.09"]
[WhiteClock "0:01:48"]
[BlackClock "0:01:57"]

1. e4 {[%clk 0:03:00]}  e5 {[%clk 0:02:58]} 2. Nf3 {[%clk 0:03:00]}  Nc6 {[%clk 0:02:56]} 3. Bb5 {[%clk 0:02:59]}  Nf6 {[%clk 0:02:56]} 4. O-O {[%clk 0:02:58]}  Nxe4 {[%clk 0:02:56]} 5. Re1 {[%clk 0:02:58]}  Nd6 {[%clk 0:02:52]} 6. Bf1 {[%clk 0:02:58]}  Be7 {[%clk 0:02:50]} 7. Nxe5 {[%clk 0:02:59]}  Nxe5 {[%clk 0:02:49]} 8. Rxe5 {[%clk 0:03:00]}  O-O {[%clk 0:02:50]} 9. Nc3 {[%clk 0:03:00]}  Ne8 {[%clk 0:02:47]} 10. Nd5 {[%clk 0:03:00]}  Bd6 {[%clk 0:02:45]} 11. Re1 {[%clk 0:03:00]}  c6 {[%clk 0:02:44]} 12. Ne3 {[%clk 0:03:01]}  Bc7 {[%clk 0:02:42]} 13. Nf5 {[%clk 0:02:59]}  d5 {[%clk 0:02:43]} 14. Ne7+ {[%clk 0:02:59]}  Kh8 {[%clk 0:02:41]} 15. Nxc8 {[%clk 0:03:00]}  Qxc8 {[%clk 0:02:40]} 16. d3 {[%clk 0:03:01]}  Qd7 {[%clk 0:02:37]} 17. Qf3 {[%clk 0:03:00]}  Nd6 {[%clk 0:02:33]} 18. c3 {[%clk 0:02:57]}  f6 {[%clk 0:02:33]} 19. g3 {[%clk 0:02:54]}  Rae8 {[%clk 0:02:32]} 20. Bd2 {[%clk 0:02:51]}  Nf7 {[%clk 0:02:29]} 21. a4 {[%clk 0:02:14]}  Ne5 {[%clk 0:02:24]} 22. Qg2 {[%clk 0:02:13]}  Qf5 {[%clk 0:02:23]} 23. Re3 {[%clk 0:02:11]}  Bb6 {[%clk 0:02:05]} 24. d4 {[%clk 0:02:06]}  Nf7 {[%clk 0:02:05]} 25. Bd3 {[%clk 0:02:03]}  Qd7 {[%clk 0:02:03]} 26. a5 {[%clk 0:02:02]}  Bc7 {[%clk 0:02:02]} 27. a6 {[%clk 0:01:58]}  b6 {[%clk 0:02:00]} 28. Rae1 {[%clk 0:01:54]}  Rxe3 {[%clk 0:01:57]} 29. Rxe3 {[%clk 0:01:53]}  Re8 {[%clk 0:01:57]} 30. Qh3 {[%clk 0:01:48]} 1-0


[Site "https://www.chess.com"]